[Event "The Kvibergspelen 2023"]
[Site "Kviberg Park Hotel & Conference, Krutvagen 2, Gothenburg, Sweden"]
[Date "2023.09.17"]
[Round "7.4"]
[White "Kistrup, Nicolai"]
[Black "Poley, Vladimir"]
[Result "1-0"]
[TimeControl "15 minutes + 5 seconds per move from move one (Round 1 - 4) / 90 minutes + 30 seconds per move from move one (Round 5 - 8)"]
[WhiteTitle "FM"]
[BlackTitle "IM"]
[WhiteFideId "1444816"]
[BlackFideId "13500090"]
[WhiteElo "2359"]
[BlackElo "2284"]

1. d4 {[%clk 01:30:28]} {[%emt 00:00:25]} g6 {[%clk 01:30:56]} {[%emt
00:00:11]} 2. e4 {[%clk 01:29:34]} {[%emt 00:01:23]} Bg7 {[%clk 01:25:36]}
{[%emt 00:05:51]} 3. Nc3 {[%clk 01:29:36]} {[%emt 00:00:28]} c6 {[%clk
01:26:02]} {[%emt 00:00:05]} 4. h3 {[%clk 01:27:40]} {[%emt 00:02:25]} d5
{[%clk 01:26:24]} {[%emt 00:00:07]} 5. e5 {[%clk 01:27:38]} {[%emt 00:00:33]}
Nh6 {[%clk 01:23:50]} {[%emt 00:03:04]} 6. g4 {[%clk 01:26:08]} {[%emt
00:01:59]} f6 {[%clk 01:19:31]} {[%emt 00:04:50]} 7. f4 {[%clk 01:26:16]}
{[%emt 00:00:22]} fxe5 {[%clk 01:19:41]} {[%emt 00:00:20]} 8. dxe5 {[%clk
01:26:18]} {[%emt 00:00:29]} g5 {[%clk 01:19:47]} {[%emt 00:00:24]} 9. Nf3
{[%clk 01:19:59]} {[%emt 00:06:48]} Nf7 {[%clk 01:16:35]} {[%emt 00:03:42]} 10.
Qe2 {[%clk 01:05:02]} {[%emt 00:15:27]} d4 {[%clk 01:10:43]} {[%emt 00:06:22]}
11. Ne4 {[%clk 01:00:50]} {[%emt 00:04:42]} gxf4 {[%clk 01:10:37]} {[%emt
00:00:36]} 12. Bxf4 {[%clk 00:59:53]} {[%emt 00:01:27]} Qa5+ {[%clk 01:10:50]}
{[%emt 00:00:17]} 13. Bd2 {[%clk 00:48:26]} {[%emt 00:11:57]} Qc7 {[%clk
00:59:00]} {[%emt 00:12:19]} 14. Nxd4 {[%clk 00:43:52]} {[%emt 00:05:05]} Bxe5
{[%clk 00:50:08]} {[%emt 00:09:22]} 15. Bc3 {[%clk 00:41:30]} {[%emt 00:02:51]}
b5 {[%clk 00:46:22]} {[%emt 00:04:17]} 16. O-O-O {[%clk 00:38:10]} {[%emt
00:03:50]} a5 {[%clk 00:46:12]} {[%emt 00:00:39]} 17. Nc5 {[%clk 00:35:07]}
{[%emt 00:03:33]} Qb6 {[%clk 00:37:01]} {[%emt 00:09:41]} 18. Nde6 {[%clk
00:30:53]} {[%emt 00:04:44]} Bxc3 {[%clk 00:37:15]} {[%emt 00:00:17]} 19. bxc3
{[%clk 00:30:56]} {[%emt 00:00:27]} Na6 {[%clk 00:29:34]} {[%emt 00:08:11]} 20.
Ng7+ {[%clk 00:26:54]} {[%emt 00:04:32]} Kf8 {[%clk 00:29:52]} {[%emt
00:00:13]} 21. Nce6+ {[%clk 00:26:11]} {[%emt 00:01:10]} Bxe6 {[%clk 00:30:03]}
{[%emt 00:00:20]} 22. Nxe6+ {[%clk 00:26:31]} {[%emt 00:00:11]} Ke8 {[%clk
00:30:29]} {[%emt 00:00:04]} 23. Bg2 {[%clk 00:24:32]} {[%emt 00:02:28]} Rc8
{[%clk 00:21:21]} {[%emt 00:09:39]} 24. Rhf1 {[%clk 00:22:26]} {[%emt
00:02:35]} c5 {[%clk 00:21:31]} {[%emt 00:00:21]} 25. Rxf7 {[%clk 00:17:26]}
{[%emt 00:05:29]} Kxf7 {[%clk 00:21:47]} {[%emt 00:00:14]} 26. Qf2+ {[%clk
00:17:26]} {[%emt 00:00:29]} 1-0

[Event "The Kvibergspelen 2023"]
[Site "Kviberg Park Hotel & Conference, Krutvagen 2, Gothenburg, Sweden"]
[Date "2023.09.17"]
[Round "7.5"]
[White "Holm, Kristian Stuvik"]
[Black "Tripathi, Pratyush"]
[Result "1-0"]
[TimeControl "15 minutes + 5 seconds per move from move one (Round 1 - 4) / 90 minutes + 30 seconds per move from move one (Round 5 - 8)"]
[WhiteTitle "IM"]
[WhiteFideId "1508083"]
[BlackFideId "1763121"]
[WhiteElo "2488"]
[BlackElo "1735"]

1. c4 {[%clk 01:30:54]} {[%emt 00:00:06]} c6 {[%clk 01:30:16]} {[%emt
00:00:45]} 2. Nf3 {[%clk 01:31:18]} {[%emt 00:00:06]} d5 {[%clk 01:30:42]}
{[%emt 00:00:04]} 3. e3 {[%clk 01:31:43]} {[%emt 00:00:05]} Nf6 {[%clk
01:31:07]} {[%emt 00:00:05]} 4. Nc3 {[%clk 01:32:01]} {[%emt 00:00:12]} Nbd7
{[%clk 01:28:35]} {[%emt 00:03:02]} 5. Qc2 {[%clk 01:32:14]} {[%emt 00:00:17]}
e6 {[%clk 01:28:37]} {[%emt 00:00:28]} 6. b3 {[%clk 01:32:30]} {[%emt
00:00:13]} Bd6 {[%clk 01:27:39]} {[%emt 00:01:29]} 7. Bb2 {[%clk 01:32:56]}
{[%emt 00:00:04]} Qe7 {[%clk 01:27:20]} {[%emt 00:00:49]} 8. Be2 {[%clk
01:32:26]} {[%emt 00:00:59]} a5 {[%clk 01:24:37]} {[%emt 00:03:14]} 9. d4
{[%clk 01:28:21]} {[%emt 00:04:35]} O-O {[%clk 01:23:28]} {[%emt 00:01:39]} 10.
O-O {[%clk 01:28:46]} {[%emt 00:00:05]} Re8 {[%clk 01:14:31]} {[%emt 00:09:27]}
11. Rfe1 {[%clk 01:27:13]} {[%emt 00:02:02]} dxc4 {[%clk 01:11:26]} {[%emt
00:03:36]} 12. Bxc4 {[%clk 01:21:59]} {[%emt 00:05:44]} Nb6 {[%clk 01:07:54]}
{[%emt 00:04:02]} 13. e4 {[%clk 01:17:23]} {[%emt 00:05:06]} Bc7 {[%clk
00:53:49]} {[%emt 00:14:35]} 14. Bd3 {[%clk 01:16:40]} {[%emt 00:01:13]} h6
{[%clk 00:52:27]} {[%emt 00:01:51]} 15. a3 {[%clk 01:07:47]} {[%emt 00:09:24]}
Nbd7 {[%clk 00:49:53]} {[%emt 00:03:04]} 16. e5 {[%clk 01:06:23]} {[%emt
00:01:54]} Nd5 {[%clk 00:50:13]} {[%emt 00:00:09]} 17. Ne4 {[%clk 01:06:27]}
{[%emt 00:00:26]} Bb6 {[%clk 00:45:54]} {[%emt 00:04:50]} 18. Rac1 {[%clk
01:04:24]} {[%emt 00:02:32]} Nf8 {[%clk 00:42:50]} {[%emt 00:03:34]} 19. g3
{[%clk 01:01:16]} {[%emt 00:03:38]} Rd8 {[%clk 00:40:17]} {[%emt 00:03:04]} 20.
Qe2 {[%clk 00:58:06]} {[%emt 00:03:40]} Nd7 {[%clk 00:36:47]} {[%emt 00:04:00]}
21. Bb1 {[%clk 00:56:45]} {[%emt 00:01:51]} Nf8 {[%clk 00:30:49]} {[%emt
00:06:28]} 22. Nfd2 {[%clk 00:55:08]} {[%emt 00:02:07]} Nc7 {[%clk 00:29:19]}
{[%emt 00:02:00]} 23. Nd6 {[%clk 00:42:35]} {[%emt 00:13:03]} Ne8 {[%clk
00:17:33]} {[%emt 00:12:15]} 24. N2c4 {[%clk 00:41:47]} {[%emt 00:01:18]} Bc7
{[%clk 00:17:58]} {[%emt 00:00:06]} 25. Ne4 {[%clk 00:41:57]} {[%emt 00:00:20]}
b5 {[%clk 00:16:29]} {[%emt 00:01:59]} 26. Ncd2 {[%clk 00:41:20]} {[%emt
00:01:06]} Bb7 {[%clk 00:14:51]} {[%emt 00:02:10]} 27. Nc5 {[%clk 00:37:58]}
{[%emt 00:03:51]} Bc8 {[%clk 00:13:57]} {[%emt 00:01:23]} 28. Be4 {[%clk
00:37:42]} {[%emt 00:00:46]} Bd7 {[%clk 00:11:25]} {[%emt 00:03:03]} 29. Nxd7
{[%clk 00:37:34]} {[%emt 00:00:38]} Nxd7 {[%clk 00:11:48]} {[%emt 00:00:07]} 30.
Bxc6 {[%clk 00:37:55]} {[%emt 00:00:08]} Rab8 {[%clk 00:12:12]} {[%emt
00:00:06]} 31. Bxb5 {[%clk 00:37:56]} {[%emt 00:00:30]} Bb6 {[%clk 00:11:58]}
{[%emt 00:00:44]} 32. Nf3 {[%clk 00:36:52]} {[%emt 00:01:33]} Nc7 {[%clk
00:11:11]} {[%emt 00:01:18]} 33. Bc4 {[%clk 00:36:59]} {[%emt 00:00:22]} Nf8
{[%clk 00:11:26]} {[%emt 00:00:16]} 34. Rcd1 {[%clk 00:36:48]} {[%emt
00:00:41]} Nd5 {[%clk 00:09:24]} {[%emt 00:02:32]} 35. Nd2 {[%clk 00:37:00]}
{[%emt 00:00:18]} Qa7 {[%clk 00:08:47]} {[%emt 00:01:07]} 36. Ne4 {[%clk
00:37:13]} {[%emt 00:00:15]} Ne7 {[%clk 00:08:26]} {[%emt 00:00:52]} 37. Nd6
{[%clk 00:37:25]} {[%emt 00:00:20]} Nc8 {[%clk 00:08:42]} {[%emt 00:00:12]} 38.
Nb5 {[%clk 00:37:18]} {[%emt 00:00:38]} Qb7 {[%clk 00:09:02]} {[%emt 00:00:10]}
39. Rd3 {[%clk 00:36:32]} {[%emt 00:01:16]} Na7 {[%clk 00:09:20]} {[%emt
00:00:11]} 40. Nd6 {[%clk 00:36:53]} {[%emt 00:00:09]} Qa8 {[%clk 00:09:37]}
{[%emt 00:00:14]} 41. d5 {[%clk 00:36:28]} {[%emt 00:00:55]} Nc8 {[%clk
00:09:59]} {[%emt 00:00:08]} 42. dxe6 {[%clk 00:35:38]} {[%emt 00:01:20]} Nxe6
{[%clk 00:09:20]} {[%emt 00:01:09]} 43. h4 {[%clk 00:27:05]} {[%emt 00:09:02]}
Bc5 {[%clk 00:09:21]} {[%emt 00:00:29]} 44. Red1 {[%clk 00:25:10]} {[%emt
00:02:26]} Nb6 {[%clk 00:09:26]} {[%emt 00:00:25]} 45. Bxe6 {[%clk 00:23:49]}
{[%emt 00:01:52]} fxe6 {[%clk 00:09:44]} {[%emt 00:00:10]} 46. Ne4 {[%clk
00:21:57]} {[%emt 00:02:22]} Be7 {[%clk 00:09:55]} {[%emt 00:00:20]} 47. Rxd8+
{[%clk 00:21:53]} {[%emt 00:00:33]} Rxd8 {[%clk 00:10:19]} {[%emt 00:00:07]} 48.
Rxd8+ {[%clk 00:21:44]} {[%emt 00:00:38]} Qxd8 {[%clk 00:10:37]} {[%emt
00:00:11]} 49. Qg4 {[%clk 00:21:51]} {[%emt 00:00:24]} Qc8 {[%clk 00:10:15]}
{[%emt 00:00:52]} 50. Nf6+ {[%clk 00:20:19]} {[%emt 00:02:02]} Kh8 {[%clk
00:10:16]} {[%emt 00:00:28]} 51. Qg6 {[%clk 00:20:23]} {[%emt 00:00:26]} 1-0

[Event "The Kvibergspelen 2023"]
[Site "Kviberg Park Hotel & Conference, Krutvagen 2, Gothenburg, Sweden"]
[Date "2023.09.17"]
[Round "7.6"]
[White "Nygren, Kim"]
[Black "Akesson, Ralf"]
[Result "0-1"]
[TimeControl "15 minutes + 5 seconds per move from move one (Round 1 - 4) / 90 minutes + 30 seconds per move from move one (Round 5 - 8)"]
[WhiteTitle "CM"]
[BlackTitle "GM"]
[WhiteFideId "1706136"]
[BlackFideId "1700120"]
[WhiteElo "2171"]
[BlackElo "2410"]

1. d4 {[%clk 01:30:50]} {[%emt 00:00:10]} Nf6 {[%clk 01:29:40]} {[%emt
00:01:20]} 2. Bg5 {[%clk 01:30:48]} {[%emt 00:00:31]} d5 {[%clk 01:29:54]}
{[%emt 00:00:17]} 3. Bxf6 {[%clk 01:30:40]} {[%emt 00:00:39]} exf6 {[%clk
01:30:14]} {[%emt 00:00:09]} 4. e3 {[%clk 01:30:56]} {[%emt 00:00:14]} Bd6
{[%clk 01:29:57]} {[%emt 00:00:47]} 5. Bd3 {[%clk 01:30:11]} {[%emt 00:01:16]}
O-O {[%clk 01:30:00]} {[%emt 00:00:27]} 6. Nd2 {[%clk 01:29:44]} {[%emt
00:00:57]} Re8 {[%clk 01:29:45]} {[%emt 00:00:44]} 7. Qf3 {[%clk 01:28:11]}
{[%emt 00:02:02]} c6 {[%clk 01:29:27]} {[%emt 00:00:49]} 8. Ne2 {[%clk
01:27:51]} {[%emt 00:00:50]} Nd7 {[%clk 01:27:52]} {[%emt 00:02:05]} 9. O-O-O
{[%clk 01:26:28]} {[%emt 00:01:51]} b5 {[%clk 01:20:59]} {[%emt 00:07:26]} 10.
g4 {[%clk 01:20:01]} {[%emt 00:06:56]} Nb6 {[%clk 01:20:32]} {[%emt 00:00:57]}
11. h4 {[%clk 01:14:18]} {[%emt 00:06:12]} Nc4 {[%clk 01:19:46]} {[%emt
00:01:17]} 12. Nb3 {[%clk 01:04:55]} {[%emt 00:09:53]} a5 {[%clk 01:17:49]}
{[%emt 00:02:27]} 13. g5 {[%clk 01:02:02]} {[%emt 00:03:22]} f5 {[%clk
01:11:49]} {[%emt 00:06:31]} 14. Rdg1 {[%clk 00:47:40]} {[%emt 00:14:52]} a4
{[%clk 01:11:43]} {[%emt 00:00:36]} 15. Nc5 {[%clk 00:31:49]} {[%emt 00:16:21]}
Qa5 {[%clk 01:06:05]} {[%emt 00:06:08]} 16. g6 {[%clk 00:27:34]} {[%emt
00:04:45]} fxg6 {[%clk 01:04:57]} {[%emt 00:01:38]} 17. Bxc4 {[%clk 00:24:14]}
{[%emt 00:03:50]} bxc4 {[%clk 01:05:18]} {[%emt 00:00:09]} 18. h5 {[%clk
00:23:29]} {[%emt 00:01:15]} Bxc5 {[%clk 00:56:42]} {[%emt 00:09:06]} 19. hxg6
{[%clk 00:21:14]} {[%emt 00:02:45]} h6 {[%clk 00:56:59]} {[%emt 00:00:13]} 20.
dxc5 {[%clk 00:19:46]} {[%emt 00:01:59]} a3 {[%clk 00:55:49]} {[%emt 00:01:39]}
21. b3 {[%clk 00:19:40]} {[%emt 00:00:36]} cxb3 {[%clk 00:56:05]} {[%emt
00:00:14]} 22. axb3 {[%clk 00:19:50]} {[%emt 00:00:20]} Re4 {[%clk 00:48:52]}
{[%emt 00:07:42]} 23. Kb1 {[%clk 00:13:31]} {[%emt 00:06:50]} Qxc5 {[%clk
00:40:58]} {[%emt 00:08:24]} 24. Rc1 {[%clk 00:09:07]} {[%emt 00:04:53]} Qd6
{[%clk 00:36:47]} {[%emt 00:04:41]} 25. Ka2 {[%clk 00:09:10]} {[%emt 00:00:27]}
Qxg6 {[%clk 00:36:04]} {[%emt 00:01:13]} 26. Rhg1 {[%clk 00:08:44]} {[%emt
00:00:57]} Rg4 {[%clk 00:35:31]} {[%emt 00:01:02]} 27. Rgd1 {[%clk 00:08:47]}
{[%emt 00:00:28]} Qf6 {[%clk 00:33:43]} {[%emt 00:02:18]} 28. c3 {[%clk
00:07:20]} {[%emt 00:01:57]} Rb8 {[%clk 00:33:19]} {[%emt 00:00:54]} 29. Rd4
{[%clk 00:06:03]} {[%emt 00:01:47]} Qe7 {[%clk 00:32:34]} {[%emt 00:01:15]} 30.
Rxg4 {[%clk 00:06:05]} {[%emt 00:00:28]} fxg4 {[%clk 00:32:56]} {[%emt
00:00:07]} 31. Qf4 {[%clk 00:06:28]} {[%emt 00:00:07]} Qb7 {[%clk 00:31:41]}
{[%emt 00:01:46]} 32. b4 {[%clk 00:04:44]} {[%emt 00:02:15]} Bd7 {[%clk
00:31:29]} {[%emt 00:00:41]} 33. Qd6 {[%clk 00:04:50]} {[%emt 00:00:24]} Rf8
{[%clk 00:30:18]} {[%emt 00:01:40]} 34. Nf4 {[%clk 00:04:59]} {[%emt 00:00:20]}
Bf5 {[%clk 00:30:15]} {[%emt 00:00:33]} 35. Rd1 {[%clk 00:04:51]} {[%emt
00:00:39]} Qb5 {[%clk 00:29:49]} {[%emt 00:00:55]} 36. Rd4 {[%clk 00:02:59]}
{[%emt 00:02:23]} Qf1 {[%clk 00:27:25]} {[%emt 00:02:54]} 37. Qxc6 {[%clk
00:03:19]} {[%emt 00:00:10]} Qxf2+ {[%clk 00:24:49]} {[%emt 00:03:06]} 38. Kxa3
{[%clk 00:03:43]} {[%emt 00:00:06]} Qxe3 {[%clk 00:25:10]} {[%emt 00:00:08]} 39.
Nxd5 {[%clk 00:03:07]} {[%emt 00:01:06]} Qc1+ {[%clk 00:24:25]} {[%emt
00:01:15]} 40. Ka4 {[%clk 00:03:25]} {[%emt 00:00:13]} Kh7 {[%clk 00:20:58]}
{[%emt 00:03:56]} 41. Qd6 {[%clk 00:02:26]} {[%emt 00:01:30]} Rf7 {[%clk
00:18:53]} {[%emt 00:02:35]} 42. Kb5 {[%clk 00:02:16]} {[%emt 00:00:41]} Qe1
{[%clk 00:17:59]} {[%emt 00:01:23]} 43. c4 {[%clk 00:02:04]} {[%emt 00:00:41]}
g3 {[%clk 00:17:06]} {[%emt 00:01:23]} 44. Nf4 {[%clk 00:01:54]} {[%emt
00:00:41]} g2 {[%clk 00:15:36]} {[%emt 00:01:59]} 45. Nxg2 {[%clk 00:02:08]}
{[%emt 00:00:17]} Qe8+ {[%clk 00:15:59]} {[%emt 00:00:07]} 46. Kc5 {[%clk
00:02:02]} {[%emt 00:00:36]} Qc8+ {[%clk 00:16:15]} {[%emt 00:00:14]} 47. Kb5
{[%clk 00:02:19]} {[%emt 00:00:14]} Qb7+ {[%clk 00:16:11]} {[%emt 00:00:33]}
0-1

[Event "The Kvibergspelen 2023"]
[Site "Kviberg Park Hotel & Conference, Krutvagen 2, Gothenburg, Sweden"]
[Date "2023.09.17"]
[Round "7.7"]
[White "Jogstad, Daniel"]
[Black "Ramsdal, Jens Albert"]
[Result "0-1"]
[TimeControl "15 minutes + 5 seconds per move from move one (Round 1 - 4) / 90 minutes + 30 seconds per move from move one (Round 5 - 8)"]
[WhiteTitle "CM"]
[BlackTitle "FM"]
[WhiteFideId "1718959"]
[BlackFideId "1429221"]
[WhiteElo "2137"]
[BlackElo "2391"]

1. d4 {[%clk 01:30:57]} {[%emt 00:00:02]} e6 {[%clk 01:27:59]} {[%emt
00:03:02]} 2. Nf3 {[%clk 01:30:30]} {[%emt 00:00:56]} Nf6 {[%clk 01:23:39]}
{[%emt 00:04:49]} 3. c4 {[%clk 01:29:57]} {[%emt 00:01:04]} d5 {[%clk
01:23:37]} {[%emt 00:00:32]} 4. g3 {[%clk 01:28:44]} {[%emt 00:01:43]} Bb4+
{[%clk 01:23:38]} {[%emt 00:00:29]} 5. Nbd2 {[%clk 01:28:55]} {[%emt 00:00:19]}
O-O {[%clk 01:22:24]} {[%emt 00:01:45]} 6. Bg2 {[%clk 01:29:19]} {[%emt
00:00:05]} dxc4 {[%clk 01:21:51]} {[%emt 00:01:04]} 7. Qc2 {[%clk 01:29:42]}
{[%emt 00:00:07]} a5 {[%clk 01:11:11]} {[%emt 00:11:10]} 8. a3 {[%clk
01:28:24]} {[%emt 00:01:47]} Bxd2+ {[%clk 01:08:19]} {[%emt 00:03:23]} 9. Bxd2
{[%clk 01:28:49]} {[%emt 00:00:05]} b5 {[%clk 01:08:31]} {[%emt 00:00:17]} 10.
b3 {[%clk 01:29:13]} {[%emt 00:00:07]} cxb3 {[%clk 01:05:52]} {[%emt 00:03:09]}
11. Qxb3 {[%clk 01:29:36]} {[%emt 00:00:05]} Qd5 {[%clk 01:05:53]} {[%emt
00:00:30]} 12. Qb2 {[%clk 01:24:32]} {[%emt 00:05:35]} Bb7 {[%clk 00:55:49]}
{[%emt 00:10:33]} 13. O-O {[%clk 01:24:37]} {[%emt 00:00:24]} Nbd7 {[%clk
00:51:05]} {[%emt 00:05:15]} 14. Rab1 {[%clk 01:12:32]} {[%emt 00:12:36]} Bc6
{[%clk 00:41:29]} {[%emt 00:10:05]} 15. Rfc1 {[%clk 01:11:08]} {[%emt
00:01:53]} Ra7 {[%clk 00:36:49]} {[%emt 00:05:12]} 16. Ne1 {[%clk 00:56:12]}
{[%emt 00:15:26]} Ne4 {[%clk 00:34:52]} {[%emt 00:02:26]} 17. Qc2 {[%clk
00:56:26]} {[%emt 00:00:16]} Qf5 {[%clk 00:29:56]} {[%emt 00:05:26]} 18. f3
{[%clk 00:56:22]} {[%emt 00:00:35]} Nxd2 {[%clk 00:29:54]} {[%emt 00:00:31]} 19.
Qxd2 {[%clk 00:56:48]} {[%emt 00:00:04]} Nb8 {[%clk 00:27:13]} {[%emt
00:03:11]} 20. e4 {[%clk 00:54:24]} {[%emt 00:02:54]} Qf6 {[%clk 00:27:40]}
{[%emt 00:00:04]} 21. Qe3 {[%clk 00:54:46]} {[%emt 00:00:07]} Ra6 {[%clk
00:27:49]} {[%emt 00:00:21]} 22. Nd3 {[%clk 00:54:53]} {[%emt 00:00:24]} Rd8
{[%clk 00:26:53]} {[%emt 00:01:25]} 23. Ne5 {[%clk 00:54:19]} {[%emt 00:01:03]}
Be8 {[%clk 00:26:08]} {[%emt 00:01:16]} 24. Rxc7 {[%clk 00:52:47]} {[%emt
00:02:03]} Rad6 {[%clk 00:23:45]} {[%emt 00:02:53]} 25. Rd1 {[%clk 00:47:27]}
{[%emt 00:05:50]} Qxe5 {[%clk 00:23:19]} {[%emt 00:00:56]} 26. dxe5 {[%clk
00:47:47]} {[%emt 00:00:09]} Rxd1+ {[%clk 00:23:47]} {[%emt 00:00:02]} 27. Bf1
{[%clk 00:47:17]} {[%emt 00:01:00]} b4 {[%clk 00:24:15]} {[%emt 00:00:02]} 28.
Kg2 {[%clk 00:47:02]} {[%emt 00:00:45]} R1d2+ {[%clk 00:23:15]} {[%emt
00:01:29]} 29. Kh3 {[%clk 00:44:14]} {[%emt 00:03:19]} h5 {[%clk 00:21:39]}
{[%emt 00:02:06]} 30. axb4 {[%clk 00:42:22]} {[%emt 00:02:23]} axb4 {[%clk
00:21:00]} {[%emt 00:01:08]} 31. Rc8 {[%clk 00:41:49]} {[%emt 00:01:03]} Rxh2+
{[%clk 00:21:13]} {[%emt 00:00:17]} 32. Kxh2 {[%clk 00:42:14]} {[%emt
00:00:06]} Rxc8 {[%clk 00:21:40]} {[%emt 00:00:03]} 33. f4 {[%clk 00:34:40]}
{[%emt 00:08:02]} Nc6 {[%clk 00:19:32]} {[%emt 00:02:39]} 34. Qc5 {[%clk
00:24:59]} {[%emt 00:10:12]} b3 {[%clk 00:18:51]} {[%emt 00:01:10]} 35. Bd3
{[%clk 00:25:04]} {[%emt 00:00:25]} b2 {[%clk 00:18:36]} {[%emt 00:00:45]} 36.
f5 {[%clk 00:25:04]} {[%emt 00:00:31]} Rd8 {[%clk 00:18:04]} {[%emt 00:01:01]}
37. Bb1 {[%clk 00:25:21]} {[%emt 00:00:13]} Nd4 {[%clk 00:13:55]} {[%emt
00:04:39]} 38. Kh3 {[%clk 00:23:21]} {[%emt 00:02:30]} Bb5 {[%clk 00:13:18]}
{[%emt 00:01:07]} 39. Qc3 {[%clk 00:20:56]} {[%emt 00:02:55]} Be2 {[%clk
00:10:06]} {[%emt 00:03:43]} 40. Qd2 {[%clk 00:15:32]} {[%emt 00:05:53]} Bf1+
{[%clk 00:09:56]} {[%emt 00:00:40]} 0-1